[Event "FIDE CB Open 2022"]
[Site "Ceske Budejovice"]
[Date "2022.07.06"]
[Round "6.31"]
[White "Kotleska, Roman"]
[Black "Sudrich, Radek"]
[Result "0-1"]
[ECO "C44"]
[WhiteElo "1863"]
[BlackElo "2049"]
[Annotator "TA"]
[PlyCount "64"]
[EventDate "2022.07.01"]
[EventType "swiss"]
[EventCountry "CZE"]
[SourceTitle "playchess.com"]
[Source "ChessBase"]
[SourceQuality "1"]
[TimeControl "40/5400+30:1800+30"]

{[%evp 19,64,0,2,8,39,0,10,9,44,47,43,-106,-97,-260,-268,-728,-709,-895,-893,-1288,-1287,-1287,-1266,-1231,-875,-869,-868,-858,-859,-859,-831,-863,-860,-860,-855,-826,-810,-812,-794,-795,-768,-906,-915,-930,-917,-918,-912]} 1. e4 {[%emt 0:00:12]} e5 {[%emt 0:00:08]} 2. d4 {[%emt 0:00:15]} exd4 {[%emt 0:00:10]} 3. c3 {[%emt 0:00:17]} d5 {[%emt 0:02:00]} 4. exd5 {[%emt 0:00:02]} Qxd5 {[%emt 0:02:30]} 5. cxd4 {[%emt 0:00:04]} Nc6 {[%emt 0:00:30]} 6. Nf3 {[%emt 0:00:04]} Nf6 {[%emt 0:07:44]} 7. Nc3 {[%emt 0:00:47]} Bb4 {[%emt 0:00:52]} 8. Bd2 {[%emt 0:01:18]} Bxc3 {[%emt 0:04:36]} 9. bxc3 {[%emt 0:00:05]} O-O {[%emt 0:00:13]} 10. Be2 {[%emt 0:00:43]} Bg4 {[%emt 0:04:36]} 11. O-O {[%emt 0:00:28] C44: Ponziani Opening and Scotch Gambit.} Rfe8 {[%emt 0:01:56]} 12. Be3 {[%emt 0:06:21]} Rad8 {[%emt 0:05:50]} 13. Re1 {[%emt 0:14:08] [#] The position is equal.} Qf5 $146 {[%emt 0:23:19]} ({Predecessor:} 13... Ne4 14. Qc2 Qa5 15. Rac1 h6 16. Qb2 Nd6 17. h3 Bh5 18. g4 Bg6 19. c4 Qb4 {0-1 (30) Chekhov,V (2470)-Butnorius,A Daugavpils 1978}) 14. h3 {[%emt 0:08:26]} Bh5 {[%emt 0:01:04]} 15. g4 {[%emt 0:16:19]} (15. Qb3 $14) 15... Bxg4 $1 $17 {[%emt 0:00:11] Black is more active.} 16. hxg4 {[%emt 0:00:09] This costs White the game.} (16. Bd3 $17 Qxf3 17. hxg4) 16... Qxg4+ $19 {[%emt 0:00:11]} 17. Kh2 $2 {[%emt 0:13:17] [#]} ({Much weaker is} 17. Kf1 Qh3+ 18. Kg1 Rxe3 $1 $19) (17. Kh1 Rxe3 18. Nh2 (18. fxe3 $2 Ne4 $19) 18... Qe4+ 19. Bf3 Rxe1+ 20. Qxe1) 17... Rxe3 $1 {[%emt 0:13:46][%mdl 512] Black is clearly winning.} 18. fxe3 {[%emt 0:00:37] [#]} (18. Rg1 Qf4+) 18... Rd5 $1 {[%emt 0:00:57]} ({Stronger than} 18... Ne4 19. Rg1 Qh5+ 20. Kg2 $17) 19. Ne5 {[%emt 0:04:02]} Qh4+ {[%emt 0:01:55]} 20. Kg2 {[%emt 0:00:36]} Nxe5 {[%emt 0:05:31]} 21. dxe5 {[%emt 0:20:12]} Rxd1 {[%emt 0:01:26]} 22. Raxd1 {[%emt 0:00:02]} Ne4 {[%emt 0:00:19] ( -> ...Qf2+)} 23. Rf1 {[%emt 0:01:41] Prevents Qf2+.} Qg3+ {[%emt 0:00:18]} 24. Kh1 {[%emt 0:00:13]} g6 {[%emt 0:00:52] Hoping for ...Qh3+.} 25. e6 {[%emt 0:05:14]} Qh3+ {[%emt 0:00:23]} 26. Kg1 {[%emt 0:00:22]} Qxe3+ {[%emt 0:00:13]} 27. Kh1 {[%emt 0:01:32]} Qh3+ {[%emt 0:00:07]} (27... Qxe2 {leads to mate.} 28. exf7+ Kf8 29. Rd8+ Ke7 30. f8=Q+ Ke6 31. Qe8#) 28. Kg1 {[%emt 0:00:10]} Qg3+ {[%emt 0:00:02]} 29. Kh1 {[%emt 0:00:18]} fxe6 {[%emt 0:00:29]} 30. Rd8+ {[%emt 0:01:01]} Kg7 {[%emt 0:00:07] Threatens to win with ...Qh4+.} 31. Rdf8 {[%emt 0:00:20]} Qh3+ {[%emt 0:00:08]} 32. Kg1 {[%emt 0:01:13]} Qe3+ {[%emt 0:00:02] Weighted Error Value: White=1.11/Black=0.25 (precise)} 0-1

[Event "FIDE CB Open 2022"]
[Site "Ceske Budejovice"]
[Date "2022.07.06"]
[Round "6.32"]
[White "Vaculik, Martin"]
[Black "Sadek, Vojtech"]
[Result "1-0"]
[ECO "E04"]
[WhiteElo "2284"]
[BlackElo "1973"]
[Annotator "TA"]
[PlyCount "130"]
[EventDate "2022.07.01"]
[EventType "swiss"]
[EventCountry "CZE"]
[SourceTitle "playchess.com"]
[Source "ChessBase"]
[SourceQuality "1"]
[TimeControl "40/5400+30:1800+30"]

{[%evp 14,130,48,49,71,12,20,9,7,1,14,29,42,36,39,47,67,31,74,79,72,84,70,69,69,31,56,33,41,41,51,29,36,33,41,41,44,42,47,-2,-2,-12,-13,-11,0,0,0,0,0,-63,-48,-58,-50,-83,-39,-34,-30,-49,-7,-7,-7,-390,-433,-399,0,0,0,0,0,0,0,0,0,0,297,281,29970,29972,29971,29972,29969,29971,29973,29974,29974,29975,29975,29976,29978,29979,29975,29980,29979,29981,29981,29982,29982,29983,29985,29986,29986,29986,29985,29986,29987,29988,29988,29989,29993,29994,29998,29998,29998,29997,29998,29998,29998,29999,29999]} 1. d4 {[%emt 0:00:03]} Nf6 {[%emt 0:00:08]} 2. c4 {[%emt 0:00:24]} e6 {[%emt 0:00:06]} 3. g3 {[%emt 0:00:04]} d5 {[%emt 0:01:07][%cal Bd7d5,Bd5c4][%mdl 32]} 4. Nf3 {[%emt 0:00:53]} dxc4 {[%emt 0:00:50]} 5. Bg2 {[%emt 0:01:22]} a6 {[%emt 0:00:12]} 6. O-O {[%emt 0:02:13]} Nc6 {[%emt 0:00:08]} 7. e3 {[%emt 0:03:35]} Rb8 {[%emt 0:00:11]} 8. Nfd2 {[%emt 0:02:10]} e5 {[%emt 0:00:25] E04: Open Catalan: 5 Nf3.} 9. Nxc4 {[%emt 0:10:08]} (9. Bxc6+ $16 bxc6 10. dxe5) 9... exd4 $11 {[%emt 0:03:54]} 10. Bxc6+ {[%emt 0:00:25][%mdl 64] Remove Defender} bxc6 {[%emt 0:00:07] The position is equal.} 11. Qxd4 {[%emt 0:00:02] [#]} Bh3 $146 {[%emt 0:07:45] Hoping for ...Qd5.} ({Predecessor:} 11... Qxd4 12. exd4 Be6 13. Ne5 c5 14. b3 Bd6 15. Ba3 Rb5 16. Nc4 O-O 17. dxc5 Bxc5 {½-½ (110) Yordanov,L (2325)-Studer,N (2584) Tornelo INT 2021}) 12. Rd1 {[%emt 0:05:02]} Qd5 {[%emt 0:02:08][%csl Gh3][%cal Rd5g2]} 13. Qe5+ {[%emt 0:02:11]} Qxe5 {[%emt 0:01:11]} 14. Nxe5 {[%emt 0:00:05]} c5 {[%emt 0:06:43]} 15. Nc3 {[%emt 0:05:19]} (15. b3 {with more complications.} Ne4 16. Nc6 Ra8 17. f3) 15... Bd6 {[%emt 0:08:37]} 16. Nc4 {[%emt 0:01:18]} Be7 {[%emt 0:01:56]} 17. b3 {[%emt 0:04:04]} O-O {[%emt 0:06:13]} 18. f3 {[%emt 0:07:22] Inhibits Bg4.} Be6 {[%emt 0:08:30]} 19. Ba3 {[%emt 0:08:05]} Rfd8 {[%emt 0:16:08]} 20. Kf2 {[%emt 0:05:32]} Nd5 {[%emt 0:03:21]} 21. Nxd5 {[%emt 0:03:46]} Bxd5 {[%emt 0:00:20]} 22. Rac1 {[%emt 0:02:37]} Bxc4 {[%emt 0:07:10]} 23. bxc4 {[%emt 0:00:35]} Kf8 {[%emt 0:02:32]} 24. Ke2 {[%emt 0:01:04]} Rd6 {[%emt 0:05:20]} 25. Rxd6 {[%emt 0:07:09]} cxd6 $14 {[%emt 0:00:43][%mdl 4096] Endgame KRB-KRB} 26. Rc2 {[%emt 0:03:20]} (26. Rc3 $1 $14) 26... Bf6 $11 {[%emt 0:02:03]} 27. Kd3 {[%emt 0:00:52]} Ke7 {[%emt 0:00:28]} 28. Rc1 {[%emt 0:01:36]} Kd7 {[%emt 0:01:20]} 29. Kc2 {[%emt 0:01:46]} Kc6 {[%emt 0:02:42]} 30. e4 {[%emt 0:00:22]} Bd4 {[%emt 0:08:19]} 31. Kd3 {[%emt 0:01:24]} (31. Rb1 $11 Rf8 32. Bb2) 31... h5 {[%emt 0:01:06][%cal Bh7h5,Bh5h4][%mdl 32]} (31... f5 $5 {[%cal Rf5e4]} 32. Re1 (32. exf5 $2 Re8 $19) 32... fxe4+ 33. Rxe4 Rb1 $15) 32. Rf1 {[%emt 0:06:58]} g5 {[%emt 0:01:31]} 33. Ke2 {[%emt 0:06:27]} Re8 {[%emt 0:00:40]} 34. Kd3 {[%emt 0:02:03]} f6 {[%emt 0:01:16]} 35. Rb1 {[%emt 0:02:15]} h4 {[%emt 0:01:16][%cal Of6f5]} 36. g4 {[%emt 0:00:18]} h3 {[%emt 0:00:29]} 37. Bb2 $2 {[%emt 0:00:31][%mdl 8192]} (37. Kc2 $1 $11 {and White is okay.}) 37... Rb8 $19 {[%emt 0:00:30]} 38. Kc2 {[%emt 0:00:28]} Rb4 $2 {[%emt 0:00:50]} ({Black should play} 38... Kd7 $1 $19 {...Ke6 is the strong threat.} 39. Bxd4 Rxb1 40. Kxb1 cxd4) 39. Bxd4 $11 {[%emt 0:00:17] And now Rxb4 would win.} Rxb1 {[%emt 0:00:06]} 40. Kxb1 {[%emt 0:00:17]} cxd4 {[%emt 0:00:01] KP-KP} 41. Kc2 {[%emt 0:30:36]} Kc5 {[%emt 0:30:30]} 42. Kd3 {[%emt 0:04:52]} a5 {[%emt 0:00:19]} 43. a4 {[%emt 0:00:03]} Kb4 $2 {[%emt 0:00:04][%mdl 8192]} (43... Kb6 $1 $11 44. Kxd4 Kc6) 44. Kxd4 $18 {[%emt 0:01:51]} Kxa4 $2 {[%emt 0:00:05]} (44... Kb3 $18 45. Kd5 Kxa4) 45. Kc3 {[%emt 0:00:00] White mates.} Ka3 {[%emt 0:00:00] [#]} 46. f4 $1 {[%emt 0:00:00]} gxf4 {[%emt 0:00:00] [#]} 47. e5 $1 {[%emt 0:00:00][%mdl 64] Deflection} fxe5 {[%emt 0:00:00]} 48. g5 {[%emt 0:00:00]} f3 {[%emt 0:00:00]} 49. Kd2 {[%emt 0:00:00]} f2 {[%emt 0:00:00]} 50. Ke2 {[%emt 0:00:00]} f1=Q+ {[%emt 0:00:00]} 51. Kxf1 {[%emt 0:00:00]} Kb2 {[%emt 0:00:00]} 52. g6 {[%emt 0:00:00]} a4 {[%emt 0:00:00]} 53. g7 {[%emt 0:00:00]} a3 {[%emt 0:00:00]} 54. g8=Q {[%emt 0:00:00]} a2 {[%emt 0:00:00]} 55. Qb8+ {[%emt 0:00:00]} Kc2 {[%emt 0:00:00]} 56. Qa7 {[%emt 0:00:00]} Kb2 {[%emt 0:00:00]} 57. Qb6+ {[%emt 0:00:00]} Kc2 {[%emt 0:00:00]} 58. Qa5 {[%emt 0:00:00]} Kb2 {[%emt 0:00:00]} 59. Qb4+ {[%emt 0:00:00]} Kc2 {[%emt 0:00:00]} 60. Qa3 {[%emt 0:00:00]} Kb1 {[%emt 0:00:00]} 61. Qb3+ {[%emt 0:00:00]} Ka1 {[%emt 0:00:00]} 62. Ke1 {[%emt 0:00:00]} d5 {[%emt 0:00:00]} 63. cxd5 {[%emt 0:00:00]} e4 {[%emt 0:00:00]} 64. Kd1 {[%emt 0:00:00]} e3 {[%emt 0:00:00]} 65. Kc1 {[%emt 0:00:00][%cal Rb3c3]} e2 {[%emt 0:00:00] What a bad dream for Black.  Weighted Error Value: White=0.26 (precise) /Black=0.36} 1-0

[Event "FIDE CB Open 2022"]
[Site "Ceske Budejovice"]
[Date "2022.07.06"]
[Round "6.34"]
[White "Simacek, Vaclav"]
[Black "Borkovec, Milan"]
[Result "0-1"]
[WhiteElo "1856"]
[BlackElo "2188"]
[Annotator "TA"]
[PlyCount "18"]
[EventDate "2022.07.01"]
[EventType "swiss"]
[EventCountry "CZE"]
[SourceTitle "playchess.com"]
[Source "ChessBase"]
[SourceQuality "1"]
[TimeControl "40/5400+30:1800+30"]

{[%evp 9,18,-27,0,-350,68,54,368,-21,-22,-307,233]} 1. e4 {[%emt 0:00:10]} e5 {[%emt 0:00:14]} 2. Nc3 {[%emt 0:00:19]} Nf6 {[%emt 0:00:15]} 3. f4 {[%emt 0:00:17]} d5 {[%emt 0:00:11]} 4. exd5 {[%emt 0:00:54]} Nxd5 {[%emt 0:00:30]} 5. fxe5 {[%emt 0:00:15]} Qh4+ {[%emt 0:00:33]} 6. Ke2 $4 {[%emt 0:00:00][%mdl 8192] [#] C29: Vienna Game: 2...Nf6 3 f4.} (6. g3 $11 {and White has nothing to worry.} Nxc3 7. gxh4 (7. Bb5+ Nc6 $11) 7... Nxd1 8. Kxd1) 6... Qh5+ $146 {[%emt 0:00:00]} ({Inferior is} 6... Nf4+ 7. Ke3 Nd3 8. Kxd3 $11 (8. Nf3 {gets mated.} Bc5+ 9. Kxd3 Bf5+)) (6... Bg4+ $19 7. Nf3 Bxf3+ 8. Kxf3 Qf4+ 9. Ke2 Qxe5+ 10. Kf3 Qf6+ 11. Ke2 Qe5+ 12. Kf3 Qf5+ 13. Ke2 Qe5+) ({Predecessor:} 6... Bg4+ 7. Nf3 Nc6 8. Nxd5 Bxf3+ 9. gxf3 Qc4+ 10. d3 Qxd5 11. c3 Qxe5+ 12. Kf2 O-O-O {1-0 (43) Tlale,T (1790)-Solomons,A (1931) Tunis 2013}) 7. Nf3 $1 $14 {[%emt 0:01:01]} f6 $2 {[%emt 0:17:26][%mdl 8192]} 8. h3 $2 {[%emt 0:04:12]} (8. Nxd5 $18 Qf7 9. Ne3) 8... fxe5 {[%emt 0:02:20] Threatens to win with ...Nxc3+.} 9. h4 $2 {[%emt 0:05:49][%mdl 8192] [#]} (9. Qe1 $11 Be6 10. Kd1) 9... Qg6 $4 {[%emt 0:08:50][%mdl 40960] Weighted Error Value: White=2.40/Black=2.43. Loss on time!?} 0-1

[Event "FIDE CB Open 2022"]
[Site "Ceske Budejovice"]
[Date "2022.07.06"]
[Round "6.35"]
[White "Musil, Vitezslav"]
[Black "Hurtik, Matej"]
[Result "0-1"]
[ECO "A00"]
[WhiteElo "1834"]
[BlackElo "2018"]
[Annotator "TA"]
[PlyCount "58"]
[EventDate "2022.07.01"]
[EventType "swiss"]
[EventCountry "CZE"]
[SourceTitle "playchess.com"]
[Source "ChessBase"]
[SourceQuality "1"]
[TimeControl "40/5400+30:1800+30"]

{[%evp 9,58,-12,-10,-19,0,-12,-12,-14,9,12,10,0,2,-6,0,-15,0,0,0,-71,-73,-73,-68,-69,-10,-18,0,0,25,19,40,6,4,7,3,-91,-127,-106,-110,-219,-216,-558,-556,-548,-532,-565,-545,-635,-628,-981,-971]} 1. e4 {[%emt 0:00:08]} d5 {[%emt 0:00:14][%cal Bd7d5,Bd5d4][%mdl 32]} 2. Nc3 {[%emt 0:00:09]} d4 {[%emt 0:00:54]} 3. Nce2 {[%emt 0:00:19]} e5 {[%emt 0:00:51]} 4. d3 {[%emt 0:00:05]} Bb4+ {[%emt 0:05:07]} 5. c3 {[%emt 0:03:18]} dxc3 {[%emt 0:05:33]} 6. Nxc3 {[%emt 0:00:58] A00: Irregular Openings.} Nc6 {[%emt 0:01:06]} 7. Nf3 {[%emt 0:00:07] [#]} Bg4 $146 {[%emt 0:01:29]} ({Predecessor:} 7... Nf6 8. Be2 Nd4 9. Nxe5 O-O 10. Ng4 Nxg4 11. Bxg4 Bxg4 12. Qxg4 Nc2+ 13. Kf1 Qd4 14. Qg3 Nxa1 {0-1 (14) Machado Da Silva,L-Guaitaneli,L Foz do Iguacu 2011}) 8. Be2 {[%emt 0:00:07] The position is equal.} h6 {[%emt 0:02:44]} 9. O-O {[%emt 0:00:13]} Nf6 {[%emt 0:02:28]} 10. a3 {[%emt 0:03:49]} Bc5 {[%emt 0:02:44]} 11. b4 {[%emt 0:13:10]} Bxf3 {[%emt 0:01:53]} 12. Bxf3 {[%emt 0:00:48]} Bd4 {[%emt 0:00:44]} 13. Qb3 {[%emt 0:05:31]} O-O {[%emt 0:04:35]} 14. Be3 {[%emt 0:02:54]} (14. Rb1 $11 {keeps the balance.}) 14... Bxe3 $17 {[%emt 0:00:42]} 15. fxe3 {[%emt 0:00:31]} Qxd3 {[%emt 0:00:02]} 16. Rfe1 {[%emt 0:00:04]} Qd7 {[%emt 0:06:08]} (16... Ne7 $15) 17. Rad1 $11 {[%emt 0:03:30]} Qe6 {[%emt 0:00:11]} 18. Nd5 {[%emt 0:09:13]} Rfd8 {[%emt 0:17:00]} 19. Qc3 {[%emt 0:00:53] Strongly threatening b5.} Ne8 {[%emt 0:05:04]} 20. b5 {[%emt 0:04:31]} (20. Rf1 {feels hotter.} Ne7 21. Nxc7 Rdc8 22. Rd8) 20... Ne7 {[%emt 0:00:20]} 21. Nxc7 {[%emt 0:00:19]} Rdc8 $1 {[%emt 0:00:31][%cal Bd8c8,Bc8c3,Bc3a3][%mdl 32] [#]} ({Don't do} 21... Nxc7 22. Qxc7 Rxd1 23. Rxd1 $14) 22. Nxe6 {[%emt 0:02:09]} (22. Rd8 $1 $11 Qb6 23. Rxe8+ Rxe8 24. Nxa8 Rxa8 25. a4 (25. Qxe5 Ng6 $11)) 22... Rxc3 $17 {[%emt 0:00:02]} 23. Rd7 {[%emt 0:00:38][%csl LRb7,LRe7]} Ng6 $36 {[%emt 0:00:27][%mdl 2048] Black is in control.} 24. Bh5 {[%emt 0:01:13]} (24. Rd8 $17 {is the only way for White.} Rac8 25. Bg4 Rxd8 26. Nxd8) 24... Nf6 $19 {[%emt 0:00:17][%cal Be8f6,Bf6h5,Bh5f4][%mdl 32]} 25. Rxb7 {[%emt 0:01:11]} (25. Rc7 {nothing else works.} Rxc7 26. Nxc7) 25... Nxh5 {[%emt 0:00:10] Black is clearly winning.} 26. Nc7 {[%emt 0:00:06]} Rc8 {[%emt 0:00:19]} 27. Nd5 {[%emt 0:01:24]} Rxa3 {[%emt 0:01:07]} 28. Rf1 {[%emt 0:00:08]} Rc2 {[%emt 0:02:02] ( -> ...Raa2)} 29. Rbxf7 {[%emt 0:02:18] [#]} Nhf4 $1 {[%emt 0:01:33][%mdl 512] Weighted Error Value: White=0.60/Black=0.11 (very precise)} 0-1

[Event "FIDE CB Open 2022"]
[Site "Ceske Budejovice"]
[Date "2022.07.06"]
[Round "6.36"]
[White "Hosnedl, Matyas"]
[Black "Rosol, Philip"]
[Result "1-0"]
[ECO "B40"]
[WhiteElo "1967"]
[BlackElo "1741"]
[Annotator "TA"]
[PlyCount "53"]
[EventDate "2022.07.01"]
[EventType "swiss"]
[EventCountry "CZE"]
[SourceTitle "playchess.com"]
[Source "ChessBase"]
[SourceQuality "1"]
[TimeControl "40/5400+30:1800+30"]

{[%evp 16,53,22,16,17,16,29,25,29,18,49,55,120,48,167,129,132,147,297,289,294,290,354,349,358,300,360,319,330,330,316,318,346,345,362,360,439,431,1404,1356]} 1. e4 {[%emt 0:00:04]} c5 {[%emt 0:00:06]} 2. Nf3 {[%emt 0:00:15]} e6 {[%emt 0:00:06]} 3. d4 {[%emt 0:00:23]} cxd4 {[%emt 0:00:08]} 4. Nxd4 {[%emt 0:00:04]} Nc6 {[%emt 0:00:07]} 5. Nxc6 {[%emt 0:00:54]} bxc6 {[%emt 0:00:08]} 6. Bd3 {[%emt 0:00:09]} d5 {[%emt 0:00:24]} 7. O-O {[%emt 0:00:26]} Nf6 {[%emt 0:00:49]} 8. Nd2 {[%emt 0:00:36]} Be7 {[%emt 0:04:00]} 9. b3 {[%emt 0:01:43]} Nd7 {[%emt 0:18:23] B40: Sicilian: 2...e6, Unusual lines.} 10. Bb2 {[%emt 0:01:45]} Bf6 {[%emt 0:01:11]} 11. Bxf6 {[%emt 0:02:31]} Qxf6 {[%emt 0:00:26] White has an edge.} 12. c4 {[%emt 0:08:16] [#]} Nc5 $146 {[%emt 0:06:24]} ({Predecessor:} 12... d4 13. f4 e5 14. fxe5 Qe7 15. e6 Qxe6 16. c5 Qh6 17. Nf3 Nxc5 18. Bc4 Ne6 19. Bxe6 Bxe6 20. Qxd4 {1-0 (36) Tomcsanyi,P (2235)-Fancsy,I (2335) Gyor 1992}) 13. Bc2 {[%emt 0:01:47][%cal Bd3c2,Bc2e4,Be4f3][%mdl 32]} Ba6 {[%emt 0:16:59]} ({Black should play} 13... O-O $14) 14. Re1 {[%emt 0:04:40]} (14. b4 $16) 14... Rd8 {[%emt 0:05:59]} ({Black should try} 14... dxc4 $14 15. Nxc4 Bxc4) 15. cxd5 {[%emt 0:17:15]} cxd5 {[%emt 0:00:35]} 16. b4 {[%emt 0:01:04]} Nxe4 {[%emt 0:02:15] A mistake that costs the game.} (16... Nd3 $16 {was necessary.}) 17. Bxe4 $18 {[%emt 0:00:15] [#] Qa4+ is the strong threat.} O-O {[%emt 0:07:27]} 18. Bf3 {[%emt 0:02:57]} Qb2 {[%emt 0:01:22]} 19. Nb3 {[%emt 0:01:46][%cal Bd2b3,Bb3c5,Bc5d3][%mdl 32]} Bc4 {[%emt 0:02:33]} 20. Qc1 {[%emt 0:03:26]} Qf6 {[%emt 0:01:07]} 21. Nc5 {[%emt 0:00:54]} Rfe8 {[%emt 0:02:59]} 22. Be2 {[%emt 0:00:59]} Bxe2 {[%emt 0:00:35]} 23. Rxe2 {[%emt 0:00:07]} d4 {[%emt 0:04:56]} 24. Rb1 {[%emt 0:02:30]} e5 {[%emt 0:00:36]} 25. Qc4 {[%emt 0:02:32]} d3 {[%emt 0:17:12]} 26. Nxd3 {[%emt 0:14:18]} Rd4 {[%emt 0:00:30]} (26... Qe6 $142 27. Qc3 Qg6) 27. Qxd4 {[%emt 0:00:05] Weighted Error Value: White=0.15 (very precise) /Black=0.47} 1-0

[Event "FIDE CB Open 2022"]
[Site "Ceske Budejovice"]
[Date "2022.07.06"]
[Round "6.37"]
[White "Kosut, Tomas"]
[Black "Chval, Zdenek"]
[Result "1/2-1/2"]
[ECO "B23"]
[WhiteElo "1820"]
[BlackElo "2063"]
[Annotator "TA"]
[PlyCount "69"]
[EventDate "2022.07.01"]
[EventType "swiss"]
[EventCountry "CZE"]
[SourceTitle "playchess.com"]
[Source "ChessBase"]
[SourceQuality "1"]
[TimeControl "40/5400+30:1800+30"]

{[%evp 12,69,-10,-3,0,-76,-76,-81,-76,-69,-59,-61,-61,-64,-51,-79,-79,-249,-123,-134,-52,-63,-42,-76,-28,-42,-33,-88,-54,-149,-143,-238,-243,-223,-211,-227,-146,-143,-135,-110,-137,-105,-120,-143,0,0,0,0,0,0,0,0,0,0,0,0,0,0,0,0]} 1. e4 {[%emt 0:00:05]} c5 {[%emt 0:00:04]} 2. Nc3 {[%emt 0:00:10]} a6 {[%emt 0:00:45]} 3. f4 {[%emt 0:01:16]} d6 {[%emt 0:00:18]} 4. Nf3 {[%emt 0:04:12]} Nf6 {[%emt 0:01:14]} 5. a4 {[%emt 0:03:13]} Nc6 {[%emt 0:01:52]} 6. Bc4 {[%emt 0:07:23]} e6 $1 {[%emt 0:02:54] 6...e6 scores better than 6...Bg4.} 7. d3 {[%emt 0:01:23]} d5 {[%emt 0:13:04] B23: Closed Sicilian: Lines without g3.} 8. exd5 {[%emt 0:02:04]} (8. Ba2 $11 {remains equal.}) 8... exd5 $17 {[%emt 0:00:05]} 9. Bb3 {[%emt 0:01:01]} Be7 {[%emt 0:05:52] Black is better.} 10. O-O {[%emt 0:08:41]} Bg4 {[%emt 0:09:58]} 11. h3 {[%emt 0:03:15]} Bxf3 {[%emt 0:01:02]} 12. Qxf3 {[%emt 0:01:14][%cal Rc3d5]} Nd4 {[%emt 0:01:02]} 13. Qg3 {[%emt 0:03:47] [#]} O-O $146 {[%emt 0:03:52][%cal Oc5c4] Threatens to win with ...c4!} ({Predecessor:} 13... Nxb3 14. cxb3 O-O 15. Ne2 Re8 16. d4 cxd4 17. Qd3 Ne4 18. Nxd4 Bc5 19. Kh2 Qb6 {0-1 (49) Kelemen,L-Havaskori,L (2053) Budapest 2005}) 14. f5 $2 {[%emt 0:04:13] [#]} (14. Qf2 $17) 14... Bd6 {[%emt 0:16:37]} (14... c4 $1 $19 {[%cal Rc4b3] has better winning chances.} 15. dxc4 dxc4 16. Bxc4 Nxc2) 15. Qh4 {[%emt 0:12:56]} Bc7 {[%emt 0:15:00]} ({Better is} 15... Be5 $17 {And now ...b5 would win.} 16. Bg5 Qd6 17. Bxf6 Bxf6) 16. Bg5 $1 $15 {[%emt 0:02:32][%cal Ob3d5]} Nxb3 {[%emt 0:03:01]} 17. cxb3 {[%emt 0:00:24]} Qd6 {[%emt 0:01:42]} (17... Be5 $17) 18. Bf4 $11 {[%emt 0:05:57] Active counter play!} Qc6 {[%emt 0:01:42]} 19. g4 {[%emt 0:05:53]} (19. Bxc7 $15 Qxc7 20. d4) 19... d4 {[%emt 0:05:08]} 20. Ne2 {[%emt 0:07:36]} ({White should try} 20. Bxc7 $1 $15 Qxc7 21. Ne2) 20... Rfe8 $17 {[%emt 0:01:34]} 21. Ng3 {[%emt 0:00:49]} (21. Qf2 $17) 21... Bxf4 $19 {[%emt 0:04:29]} 22. Rxf4 {[%emt 0:00:07]} Re3 {[%emt 0:00:52] Strongly threatening ...Rae8.} 23. g5 {[%emt 0:07:23]} Rxg3+ {[%emt 0:00:54]} 24. Qxg3 {[%emt 0:00:05]} Nh5 {[%emt 0:00:02][%csl LRf4,LRg3]} 25. Qf3 {[%emt 0:00:13]} Nxf4 {[%emt 0:00:04]} 26. Qxf4 $17 {[%emt 0:00:02][%mdl 4096] Endgame KQR-KQR} Re8 {[%emt 0:00:45] Against Re1} 27. Kf2 {[%emt 0:03:01] [#]} g6 {[%emt 0:03:32]} (27... Qb6 $1 $17 {[%cal Rb6b3]} 28. Re1 Rf8) 28. Re1 $11 {[%emt 0:06:17] The position is equal.} Rxe1 {[%emt 0:00:12]} 29. Kxe1 {[%emt 0:00:05] Threatening mate with Qb8+.} gxf5 {[%emt 0:01:30]} 30. Qxf5 {[%emt 0:01:00] KQ-KQ} Qe8+ {[%emt 0:02:21]} 31. Kd1 {[%emt 0:01:48]} Qe3 {[%emt 0:01:37]} 32. Kc2 {[%emt 0:00:48]} b5 {[%emt 0:01:21]} 33. Qc8+ {[%emt 0:05:10]} Kg7 {[%emt 0:00:01]} 34. Qf5 {[%emt 0:00:13]} Kg8 {[%emt 0:01:26]} 35. Qc8+ {[%emt 0:01:41] And White is the lucky defender.  Weighted Error Value: White=0.24 (precise) /Black=0.24 (precise)} 1/2-1/2